{"text_format":"3","workbook":"xlsx","n_sheets":5,"sheets":["general","SW-R","SW-L","Manually_operated","Obrázky"],"not_rendered":{"images":23,"defined_names":7},"read":"whole","date_system":"1900"}

{"sheet":"general","index":0,"n_rows":132,"n_cols":47,"rows_kept":132,"merged":[[1,22,2,27],[3,23,3,27],[4,23,4,27],[6,7,7,9],[8,10,8,13],[8,14,8,15],[8,17,8,18],[10,10,10,12],[11,3,11,5],[12,10,12,12],[13,3,13,5],[17,18,20,18],[17,20,19,20],[18,1,19,1],[18,19,19,19],[20,1,21,1],[21,19,22,19],[23,19,24,19],[25,19,26,19],[25,20,26,20],[26,1,29,1],[28,17,28,18],[30,24,31,26],[34,17,35,17],[38,24,39,26],[41,2,42,2],[41,24,42,26],[42,1,43,1],[44,2,45,2],[44,4,44,5],[45,5,45,6],[50,17,51,27],[53,17,54,27],[60,17,60,18],[60,19,60,20],[60,21,60,22],[60,23,60,24],[61,17,61,18],[61,19,61,20],[61,21,61,22],[61,23,61,24],[62,17,63,20],[62,21,66,27],[67,21,68,24],[67,26,67,27],[68,26,68,27]]}
[{"$nulls":29},"č.jaz.",{"$f":"VLOOKUP(E5,AD3:AE11,2,FALSE)","v":2},null,"SVYHLEDAT","CZ","EN","DE","PL","FR","NL","EST","FIN","RU",{"$nulls":4},{"$f":"$AG$102","v":"manually"}]
[{"$nulls":22},{"$f":"AG12","v":"HIGH LIFT SYSTEM (HL)"},{"$nulls":6},"Jazyk","číslo",null,{"$f":"VLOOKUP(AH2,AH2:AR96,$AE$1,FALSE)","v":"Select a language:"},"Zvolit jazyk: ","Select a language:","Wählen Sie eine Sprache","Wybierz język","Sélectionner une langue","Kies een taal:","Valige keel","Valitse kieli:","Выберите язык:",{"$nulls":4},{"$f":"$AG$104","v":"hauling chain operated - left"}]
[null,"Zvol jazyk:",{"$nulls":5},{"$f":"VLOOKUP(AG3,AG2:AR96,$AE$1+1,FALSE)","v":"Opening width"},{"$nulls":3},"mm",{"$nulls":17},"CZ",1,null,{"$f":"VLOOKUP(AH3,AH3:AR97,$AE$1,FALSE)","v":"Opening width"},"Šířka otvoru","Opening width","Lichte Breite","Szerokość otworu","LARGEUR DE BAIE","Dagmaat breedte","Ava laius","Oviaukon leveys","Ширина проема",{"$nulls":4},{"$f":"$AG$105","v":"hauling chain operated - right"}]
[null,"Select a language:",{"$nulls":21},"HL max 4100 mm; ",{"$nulls":5},"EN",2,null,"Opening height","Výška otvoru","Opening height","Lichte Höhe","Wysokość otworu","HAUTEUR DE BAIE","Dagmaat hoogte","Ava kõrgus","Oviaukon korkeus","Высота проема",{"$nulls":4},{"$f":"$AG$108","v":"electric motor on the right"}]
[null,"Wählen Sie eine Sprache:",null,null,"EN",null,null,{"$f":"VLOOKUP(AG4,AG2:AR96,$AE$1+1,FALSE)","v":"Opening height"},{"$nulls":3},"mm",null,null,{"$f":"VLOOKUP(AH99,AH99:AR175,$AE$1,FALSE)","v":"Please, fill in the fields that are marked in color!"},{"$nulls":8},"W max 8000 mm; H max 6500 mm; max. 40 m2",{"$nulls":5},"DE",3,null,"INTERIOR VIEW","POHLED ZEVNITŘ","INTERIOR VIEW","INNENANSICHT","Widok od środka","VUE INTERIEURE","BINNENAANZICHT","seestvaade","SISÄLTÄPÄIN KUVATTUNA","Вид изнутри",{"$nulls":4},{"$f":"$AG$107","v":"electric motor on the left"}]
[null,"Wybierz język:",{"$nulls":27},"PL",4,null,"SECTION A-A","ŘEZ A-A","SECTION A-A","DURCHSCHNITT A-A","Przekrój A-A","COUPE A-A","DOORSNEDE A-A","vaade A-A","LEIKKAUS A-A","Разрез А-А"]
[null,"Sélectionner une langue:",{"$nulls":5},{"$f":"AG65","v":"Free room above lintel"},{"$nulls":3},"mm",{"$nulls":17},"FR",5,null,"SECTION B-B","ŘEZ B-B","SECTION B-B","DURCHSCHNITT B-B","Przekrój B-B","COUPE B-B","DOORSNEDE B-B","VAADE B-B","LEIKKAUS B-B","Разрез B-B"]
[null,"Valige keel",{"$nulls":27},"NL",6,null,"NOTE:","POZNÁMKA:","NOTE:","ACHTUNG:","Uwaga:","Remarque:","OPMERKING:","MÄRKUS","HUOMAUTUS:","ПРИМЕЧАНИЯ:"]
[null,"Valitse kieli:",{"$nulls":5},{"$f":"VLOOKUP(AG101,AG8:AR101,$AE$1+1,FALSE)","v":"Operated"},{"$nulls":21},"EST",7]
[null,"Выберите язык:",{"$nulls":14},{"$f":"VLOOKUP($AG$6,$AG$2:$AR$96,$AE$1+1,FALSE)","v":"SECTION A-A"},{"$nulls":12},"FIN",8]
[{"$nulls":7},{"$f":"AG115","v":"Type of panel"},{"$nulls":7},{"$f":"IF(OR(K5=\"\",K7=\"\"),\"D\",\"D = \")","v":"D"},{"$f":"IF(K7=\"\",\"\",$L$58)","v":""},{"$nulls":12},"RU",9]
[{"$nulls":15},{"$f":"IF(OR(K5=\"\",K7=\"\"),\"X\",\"X = \")","v":"X"},{"$f":"IF(OR($K$5=\"\",K7=\"\"),\"\",IF($Q$11>=4500,$K$5-$P$59+500,$K$5-$P$59))","v":""},{"$nulls":15},"HIGH LIFT SYSTEM (HL)","VEDENÍ PRO VYSOKÝ PŘEKLAD (HL)","HIGH LIFT SYSTEM (HL)"," HÖHERGEFÜHRTER BESCHLAG (HL)","PROWADZENIE DLA WYSOKIEGO NADPROŻA (HL)","LEVEE HAUTE (HL)","HOOG beslagsysteem (HL)","Kõrge tõste (HL)","KORKEANOSTO (HL)","ВЫСОКИЙ ПОДЪЕМ (HL)"]
[{"$nulls":7},{"$f":"AG121","v":"Type of rails"},{"$nulls":9},{"$f":"IF(OR($K$5 =\"\",K7=\"\"),\"Y\",IF($Q$11<3000,\"Y = 0\",IF(AND($Q$11>=3000,$Q$11<4500),\"Y = \" &L63,\"Y = \" &L66)))","v":"Y"},{"$nulls":14},"springs above lintel","PRUŽINY NAD PŘEKLADEM","springs above lintel","Federn oberhalb des Sturzes","SPRĘŻYNY NAD NADPROŻEM","RESSORTS AVANTS DEPORTES DU LINTEAU","veren boven latei","Vedrud ava kohal","jouset ovipalkkin päällä","нижнее расположение вала"]
[{"$nulls":3},{"$f":"VLOOKUP(AG5,AG4:AR98,$AE$1+1,FALSE)","v":"INTERIOR VIEW"},{"$nulls":28},"pro HL>600 and HL<=1200","pro HL>600 a HL<=1200","pro HL>600 and HL<=1200","pro HL>600 und HL<=1200","pro HL>600 i HL<=1200","pro HL>600 et HL<=1200","PANEEL 40 mm","HL>600 ja HL<=1200","pro HL>600 ja HL<=1200","при высоте подъема > 600 и <= 1200"]
[{"$nulls":10},{"$f":"IF(OR(K13=AG122,K13=AG123),\"W>7500 mm => 3'\",\"\")","v":""},{"$nulls":7},{"$f":"IF(OR($K$5=\"\",K7=\"\"),\"Y2 \",\"Y2 \")","v":"Y2 "},{"$f":"IF(OR($K$5=\"\",$K$7=\"\",),\"\",IF($Q$11>=4500,\"= \" & L67, \" =  0\"))","v":""},{"$nulls":12},"SECTION THICKNESS 40 mm","PANEL 40mm","SECTION THICKNESS 40 mm","Paneel 40 mm","Panel 40 mm","40 mm PANNEAU","Max. WxH 5000x5500 max. 25m2","Paneel 40 mm","Lamelli 40mm","ТОЛЩИНА СЕКЦИИ 40мм "]
[{"$nulls":10},{"$f":"IF(OR(K13=AG122,K13=AG123),\"H> 4500 mm &W>6500 mm => 3'\",\"\")","v":""},{"$nulls":21},"Max. W x H 4000x4000","Max. W x H 4000x4000","Max. W x H 4000x4000","Max. W x H 4000x4000","Max. W x H 4000x4000","Max. W x H 4000x4000","elektrisch bediende deuren","Max. W x H 4000x4000","Max. W x H 4000x4000","макс. ШхВ (WxH) 4000x4000"]
[]
[]
[{"$nulls":8},{"$f":" \"(1) \" & $AG$37","v":"(1) NECESSARY FREE ROOM"}]
[{"$nulls":32},"mounting on brickwork","Montáž na cihlové zdivo","mounting on brickwork","Montage auf Mauerwerk und Ziegel","montaż do muru i cegły","montage sur béton","montage op beton","Paigaldus kiviseinale","asennus tiiliseinän","монтаж на бетон"]
[{"$nulls":8},{"$f":"IF(K9=AU1,\"\",\"(2) \"&$AG$48)","v":"(2) necessary side room for electrical- or hauling chain operation"},{"$nulls":15},{"$f":"VLOOKUP(AG20,AG2:AR96,$AE$1+1,FALSE)","v":"mounting on brickwork"},{"$nulls":7},"mounting on cellular concrete","Montáž na porobeton","mounting on cellular concrete","Montage auf Porenbeton oder Gasbeton","montaż do betonu porowatego","montage sur parpaing creux","montage op gasbeton","Paigaldus poorbetoonile","asennus betoniin","монтаж на газобетон"]
[{"$nulls":32},"mounting on insulated cladding","Montáž na opláštění","mounting on insulated cladding","Montage auf ISO-Trapezblechfassade","montaż do płaszcza","montage sur structure métallique  (a fournir par le charpentier)","montage op binnendooscontructie met damwandbeplating","Paigaldus soojustatud seinapaneelile","asennus eristettyyn seinäelementtiin","монтаж на металлокаркас"]
[{"$nulls":7},"f",{"$f":"IF(OR(K9=AU1,K9=AU2,K9=AU3),\"\",\"(3) \"&$AG$49)","v":"(3) Mounting surface for control panel. See product documentation for dimensions"},{"$nulls":26},"Montage auf ISO-Trapezblechfassade"]
[{"$nulls":8},{"$f":"IF(OR(K9=AU1,K9=AU2,K9=AU3),\"\",\"      \"&$AG$50)","v":"      center line ca 1.400 -1.500 mm above floor"}]
[{"$nulls":32},"WORK TO BE CARRIED OUT BY CUSTOMER, UNLESS IN ADVANCE OTHERWISE IS AGREED IN WRITING.","PRÁCE, KTERÉ MUSÍ BÝT PROVEDENY ZÁKAZNÍKEM PŘED MONTÁŽÍ, POKUD NEBYLO DOHODNUTO JINAK","WORK TO BE CARRIED OUT BY CUSTOMER, UNLESS IN ADVANCE OTHERWISE IS AGREED IN WRITING.","VORBEREITUNGEN UND ARBEITEN DIE VOM AUFTRAGGEBER ZU ERBRINGEN SIND, AUßER BEI SCHRIFTLICHER VEREINBARUNG IM VORAUS:","PRACE, KTÓRE MUSZĄ ZOSTAĆ WYKONANE PRZEZ KLIENTA PRZED WYKONANIEM MONTAŻU, O ILE NIE UZGODNIONO INACZEJ.","APPROVISIONNEMENT & TRAVAUX INCOMBANT AU MAITRE D'OUVRAGE  (sauf accord contraire)","VOORZIENINGEN EN WERKZAAMHEDEN DOOR OPDRACHTGEVER TE VERZORGEN, TENZIJ VOORAF SCHRIFTELIJK ANDERS IS OVEREENGEKOMEN ","Kliendi poolt tehtavad ettevalmistustööd v.a juhul kui pole kirjalikult teistmoodi kokku lepitud","ASIAKKAAN TEHTÄVÄT TYÖT, ELLEI ETUKÄTEEN KIRJALLISESTI MUUTOIN SOVITTU ","МАТЕРИАЛЫ И ПРОВЕДЕНИЕ РАБОТ ОБЕСПЕЧИВАЮТСЯ КЛИЕНТОМ,ЕСЛИ ИНОЕ НЕ ОГОВОРЕНО ЗАРАНЕЕ В ПИСЬМЕННОЙ ФОРМЕ"]
[{"$nulls":8},{"$f":"IF(OR(K9=AU1,K9=AU2,K9=AU3),\"\",\"(4) \"&$AG$51)","v":"(4) Electric outlet parameters can be found in the product documentation."},{"$nulls":15},{"$f":"VLOOKUP(AG21,AG2:AR96,$AE$1+1,FALSE)","v":"mounting on cellular concrete"},{"$nulls":7},"Constructional :","Konstrukční:","Constructional :","Bauseits:","Konstrukcyjne:","Structure: ","Bouwkundig:","Ehituslikud:","\nRakenteellinen:","Конструктивно:"]
[{"$nulls":32},"Supply and fix mounting frame and mounting surfaces for the rails and the spring packet in case of aerated concrete or sandwichpanels etc.","Příprava montážních ploch pro vedení vrat a pro pružiny.","Supply and fix mounting frame and mounting surfaces for the rails and the spring packet in case of aerated concrete or sandwichpanels etc.","Ein stählerner Montagerahmen zur Befestigung der vertikalen Laufschienen und des Federpakets bei nicht tragfähigen Flächen wie z.B. Porenbeton, Gasbeton, Isolationspanelen u.s.w..","Przygotowanie powierzchni montażowych dla prowadzenia bramy oraz dla sprężyn.","Préparation de la structure de montage des rails de guidage et des ressorts pour une pose sur panneaux isolants","Een stalen montageframe voor de bevestiging van de verticale looprails en het verenpakket bij niet dragende montagevlakken, zoals gasbeton, isolatiepanelen, sandwichpanelen enz.","Avaettevalmistusraami tarnimine ja paigaldus siinide ja vedrude kinnituseks","Toimittaa ja asentaa asennuskehyksen ja asennuspinnat kiskoille ja jousipaketille tapauksessa jossa kevytbetooni tai sandwich-paneeli jne.","Стальная монтажная рама для установки вертикальных направляющих и пружин в случае не несущих монтажных поверхностей, таких как: газобетон, изоляционные панели, сэндвич-панели и т.д."]
[{"$nulls":8},{"$f":"IF(OR(K9=AU1,K9=AU2,K9=AU3),\"\",\"(5) \"&$AG$36)","v":"(5) MOUNTING SURFACE FOR MOTOR"},{"$nulls":23},"Mounting possibilities for the horizontal rails up to 1 meter above the rails must be provided.","Montáž vodorovného vedení může být max. 1 metr od pevné konstrukce.","Mounting possibilities for the horizontal rails up to 1 meter above the rails must be provided.","Befestigungsmöglichkeit für die Zwischen- und Endaufhängung der horizontalen Laufschienen bis zu max. 1 m über diesen Laufschienen.","Montaż prowadzenia poziomego można wykonać w oddaleniu maks. 1 metra od konstrukcji stałej.","Lorsque les possibilités de montage des rails horizontaux dépassent ","Benodigde montagevlakken en vrije ruimtes, volgens tekening.","Paigaldusruum ülalpool siini max. 1m","Asennus mahdollisuudet vaakakiskoille enintään 1 metrin korkeudella kiskoista pitää olla mahdollista.","Способы крепления для горизонтальных направляющих максимум до 1м над данными направляющими."]
[{"$nulls":32},"Necessary mounting surface and free room as shown.","Nezbytné montážní plochy a volný prostor dle nákresu.","Necessary mounting surface and free room as shown.","Benötigte Montageflächen und Freiräume gemäß Zeichnung.","Niezbędne powierzchnie montażowe oraz wolna przestrzeń wg rysunku.","Adapter la structure et l' espace disponible selon nos plans de réservations ci-contre",null,"Piisav paigaldusruum vastavalt lisatud joonisele","Tarvittava kiinnityspinta ja vapaa tilaa kuvan mukaisesti.","Необходимые монтажные поверхности и свободное пространство в соответствии с чертежом"]
[{"$nulls":32},"Electrical supply required to be :","Elekrická příprava (pro elektricky ovládaná sekční vrata): ","Electrical supply required to be :","Elektrisch (bei elektrisch bedienten Toren):","Przygotowanie elektryczne (dla elektrycznie sterowanej bramy segmentowej) :","Alimentation electrique  (pour porte motorisée) :","Elektrisch: (bij elektrisch bediende deuren)","Elektriliselt avatavate uste jaoks","Sähkönsyöttö tarvittu:","Электрика (для ворот с электрическим управлением):"]
[{"$nulls":24},{"$f":"VLOOKUP(AG22,AG2:AR96,$AE$1+1,FALSE)","v":"mounting on insulated cladding"},{"$nulls":7},"400V/230V 3 phase neutral and earth terminating, provided by euro plug socket.","Zásuvka CEE 16 A, 5P, 400 V = zásuvka s nulovým a zemnícím vodičem","400V/230V 3 phase neutral and earth terminating, provided by euro plug socket.","Stromzufuhr 400V/230V mittels Eurosteckdose, 3 Phasen+0+PE max.1 meter vom Schaltkasten.","Gniazdo CEE 16 A, 5P, 400 V = gniazdo z przewodnikiem zerowym i uziemiającym","400V triphase T+N avec prise de raccordement CEE 16 A","Voeding  400V/230V door middel van eurostopcontact, 3 fase+0+PE max. ","Toite vedu ajamini - 400V/230V, 3 faasi","400V / 230V 3 vaihe+neutraali ja maadoitus tarjotuna Euro pistorasiasta.","Питание 400V/230V посредством заземленной евророзетки, 3 фазы+0+РЕ "]
[{"$nulls":8},{"$f":"IF(K3=\"\",\"\",IF(K9=AG102,125,IF(OR(K9=AG105,K9=AG108),375,IF(AND(K9=AG105,K9=AG108),375,125))))","v":""},{"$nulls":23},"Provide suitable mounting surface for control panel.","Zajistit vhodnou montážní plochu pro řídící jednotku motoru.","Provide suitable mounting surface for control panel.","Montagefläche für Schaltkasten, Abmessungen.","Zapewnić odpowiednią powierzchnię montażową dla jednostki sterującej silnika","Assurer une surface de montage adéquate pour le coffret de commande du moteur ","Montagevlak t.b.v. schakelkast","Kontrolleri jaoks piisava paigaldusruumi tagamine ","Tarjoa sopivan kiinnityspinnan  ohjauspaneelia varten ","необходимо обеспечить монтажную поверхность для панели управления"]
[{"$nulls":8},{"$f":"IF(K3=\"\",\"\",IF(K9=AG102,125,IF(OR(K9=AG107,K9=AG107),375,IF(OR(K9=AG104,K9=AG107),375,125))))","v":""}]
[{"$nulls":8},{"$f":"IF(K13=\"\",\"\",IF($K$13=\"2\"\"\",80,100))","v":""}]
[{"$nulls":8},{"$f":"IF(K13=\"\",\"\",IF(OR(K9=AU3,K9=AU4,K9=AU2,K9=AU1),IF($K$13=\"2\"\"\",100,120),\"\"))","v":""},{"$nulls":8},{"$f":"IF($K$11=$AG$117,290,250)","v":250},{"$nulls":14},{"$f":"VLOOKUP(AH35,AH35:AR129,$AE$1,FALSE)","v":"NECESSARY MOUNTING SURFACE"},"NEZBYTNÁ MONTÁŽNÍ PLOCHA","NECESSARY MOUNTING SURFACE","BENÖTIGTE MONTAGEFLÄCHEN","NIEZBĘDNA POWIERZCHNIA MONTAŻOWA","SURFACE NECESSAIRE DE MONTAGE","BENODIGDE MONTAGEVLAKKEN","Vajalik paigaldusruum","TARVITTAVA KIINNITYSPINTA","необходимая монтажная поверхность"]
[{"$nulls":8},{"$f":"IF(K13=\"\",\"\",IF(OR(K9=AU2,K9=AU5,K9=AU3,K9=AU1),IF($K$13=\"2\"\"\",100,120),\"\"))","v":""},{"$nulls":23},"MOUNTING SURFACE FOR MOTOR","MONTÁŽNÍ PLOCHA PRO MOTOR ","MOUNTING SURFACE FOR MOTOR","MONTAGEFLÄCHE FÜR DEN MOTOR ","POWIERZCHNIA MONTAŻOWA DLA SILNIKA","SURFACE DE L'EMPLACEMENT POUR ","BENODIGD KADER VOOR MOTOR","Vajalik ruum mootori paigalduseks ","KIINNITYSPINTA MOOTORILLE","монтажная поверхность для мотора "]
[{"$nulls":11},{"$f":"VLOOKUP(AG41,AG2:AR96,$AE$1+1,FALSE)","v":"slope of the floor"},{"$nulls":20},"NECESSARY FREE ROOM","NEZBYTNÝ VOLNÝ PROSTOR","NECESSARY FREE ROOM","BENÖTIGTER FREIRAUM","NIEZBĘDNA WOLNA PRZESTRZEŃ","ESPACE LIBRE NECCESSARIE","BENODIGDE VRIJE RUIMTE ","Vajalik vaba ruum ","TARVITTAVA VAPAA TILA","необходимое свободное пространство"]
[{"$nulls":35},"EXTRA FREIRAUM FÜR MOTOR/KETTE"]
[{"$nulls":4},{"$f":"VLOOKUP(AG7,AG2:AR96,$AE$1+1,FALSE)","v":"SECTION B-B"}]
[]
[{"$nulls":32},"slope of the floor","sklon podlahy","slope of the floor","Bodenneigung","nachylenie podłogi","réservations seuil béton","vloer met waterkering","pinna langus","kaltevuus","пол с водоотводом"]
[null,null,{"$f":"IF($K$11=$AG$117,290,250)","v":250},{"$nulls":29},"outside","směrem ven","outside","nach aussen","w kierunku na zewnątrz",{"$f":"\"\"","v":""},"buitenzijde","väljaspool","ulkopuoli"]
[{"$nulls":32},"fall 3%","sklon 3%","fall 3%","Gefälle 3%","nachylenie 3%","PENTE 3%","afschot 3%","langus 3%","kaltevuus 3%","наклон 3%"]
[{"$nulls":32},"internal level","směrem ven","internal level","Wasserschenkel","w kierunku na zewnątrz","réservations seuil béton","niveau binnen","Sisemine tasand","sisäinen taso"]
[{"$nulls":17},{"$f":"VLOOKUP(AG35,AG2:AR96,$AE$1+1,FALSE)","v":"NECESSARY MOUNTING SURFACE"},{"$nulls":14},"floor with raised","sklon podlahy","floor with raised","Boden mit","nachylenie podłogi",{"$f":"\"\"","v":""},"vloer met  ","põrand koos tõstetud sisetasandiga","lattia nostetulla","пол с наклоном 3%"]
[]
[{"$nulls":17},{"$f":"VLOOKUP(AG36,AG4:AR97,$AE$1+1,FALSE)","v":"MOUNTING SURFACE FOR MOTOR"},{"$nulls":5},{"$f":"VLOOKUP(AG37,AG4:AR97,$AE$1+1,FALSE)","v":"NECESSARY FREE ROOM"}]
[{"$nulls":32},"necessary side room for electrical- or hauling chain operation","nezbytný boční prostor pro motor nebo řetězový pohon","necessary side room for electrical- or hauling chain operation","Benötigter Freiraum bei Elektro- oder Haspelkettenbedienung ","niezbędna przestrzeń boczna dla silnika lub napędu łańcuchowego","écoinçon minimum requis pour le moteur ou treuil a chaîne","benodigde vrije ruimte voor elektrische- of ketting bediening","vajalik küljeruum mootori või tali puhul","tarvittava tila mootori- tai ketjunostolle ","необходимое боковое пространство для электропривода или цепного редуктора"]
[null,{"$f":"VLOOKUP(AG8,AG2:AR96,$AE$1+1,FALSE)","v":"NOTE:"},{"$nulls":30},"Mounting surface for control panel. See product documentation for dimensions","montážní plocha pro řídící jednotku. Rozměry najdete v dokumentaci ŘJ.","Mounting surface for control panel. See product documentation for dimensions","Montagefläche für Antriebsteuerung. Siehe Produktdokumentation für Abmessungen","Powierzchnia montażowa dla jednostki sterującej. Wymiary można znaleźć w dokumentacji produktu","Surface de montage pour le Coffret de commande","Montagevlak t.b.v. Zie productdocumentatie voor afmetingen","Kontrolli paigaldusala. Vaata toote dokumentatsiooni mõõtmete kohta","Kiinnityspinta ohjauspaneelia varten. Katso mitat tuoteasiakirjoista","монтажная поверхность для блока управления. Размеры см. в документации на изделие"]
[null,{"$f":"AG130","v":"For cable break device with orange cover  side space (L and R) min. 145mm"},{"$nulls":30},"center line ca 1.400 -1.500 mm above floor","osa cca 1.400 až 1.500 mm od podlahy","center line ca 1.400 -1.500 mm above floor","Achse ca. 1.400 bis 1.500 mm vom Boden","oś ok. 1.400 do 1.500 mm od podłogi","Voir la documentation du produit pour les dimensions. axe d'env. 1 400 a 1 500 mm a compter ","hartlijn ca. 1.400 - 1.500 boven de vloer","Keskjoon ca 1400-1500 mm põrandast","keskiviiva ca 1,400 -1,500 mm: n korkeudella lattiasta","осевая линия примерно 1.400-1.500 мм над уровнем пола"]
[null,{"$f":"VLOOKUP(AG55,AG2:AR96,$AE$1+1,FALSE)","v":"Mounting surface must be flat and massive and all mounting surfaces must be in one level."},{"$nulls":15},{"$f":"VLOOKUP(AG25,AG2:AR96,$AE$1+1,FALSE)","v":"WORK TO BE CARRIED OUT BY CUSTOMER, UNLESS IN ADVANCE OTHERWISE IS AGREED IN WRITING."},{"$nulls":14},"Electric outlet parameters can be found in the product documentation.","Zásuvka, parametry najdete v dokumentaci produktu","Electric outlet parameters can be found in the product documentation.","Die Parameter der Steckdosen sind in der Produktdokumentation zu finden.","Parametry gniazdka elektrycznego można znaleźć w dokumentacji produktu.","Les paramètres des prises électriques sont indiqués dans la documentation du produit.","De parameters van het stopcontact zijn te vinden in de productdocumentatie.","Elektripistiku parameetrid leiate toote dokumentatsioonist.","Pistorasian parametrit löytyvät tuoteasiakirjoista.","Параметры электрической розетки приведены в документации на изделие."]
[null,{"$f":"VLOOKUP(AG56,AG2:AR96,$AE$1+1,FALSE)","v":"Furthermore the opening must be plumb and square."}]
[null,{"$f":"VLOOKUP(AG57,AG2:AR96,$AE$1+1,FALSE)","v":"Floor area must be flat and horizontal."},{"$nulls":15},{"$f":"VLOOKUP(AG26,AG2:AR96,$AE$1+1,FALSE)","v":"Constructional :"}]
[null,{"$f":"AG119","v":"When 1 1/4 \"shaft, lintel is HL+360 and axis of shaft is HL + 210 mm"},{"$nulls":15},{"$f":"VLOOKUP(AG27,AG2:AR96,$AE$1+1,FALSE)","v":"Supply and fix mounting frame and mounting surfaces for the rails and the spring packet in case of aerated concrete or sandwichpanels etc."}]
[null,{"$f":"VLOOKUP(AG60,AG2:AR96,$AE$1+1,FALSE)","v":"UNITS in mm"},{"$nulls":4},{"$f":"IF(K9=\"\",AG76,AG101&\":\" & \"  \" &K9)","v":"Electrical or hauling chain operated"},{"$nulls":5},{"$f":"VLOOKUP(AG81,AG6:AR99,$AE$1+1,FALSE)","v":"Free room above lintel"},{"$nulls":19},"Mounting surface must be flat and massive and all mounting surfaces must be in one level.","Plocha, která se montuje, musí být rovná a pevná a všechny montážní plochy musí být v jedné rovině. ","Mounting surface must be flat and massive and all mounting surfaces must be in one level.","Die hinteren Seiten der Sturze und Pfeiler, sowie die Montagefläche für das Federpaket müssen eben und auf einer Linie liegen.","Powierzchnia, do której wykonywany jest montaż, musi być równa i stabilna,a wszystkie powierzchnie montażowe powinny znajdować się w jednej płaszczyźnie.","La surface d'appui pour la pose de la porte sectionnelle doit etre dans le meme plan et verticale.","De achterkanten van de penanten, de latei en de montagevlakken van het verenpakket dienen vlak en in één lijn te liggen.","Paigalduspind peab olema sirge, loodis ja mittepudenev ning kõik paigalduspinnad peavad olema ühes tasapinnas","Asennuspintojen pitää olla tasaisia, kiinteitä ja samassa linjassa.","Монтажная поверхность должна быть ровной и располагаться в одной вертикальной плоскости."]
[null,"W ",{"$f":"VLOOKUP(AG61,AG3:AR96,$AE$1+1,FALSE)","v":"Opening width"},null,null,{"$f":"IF(K3=\"\",\"W \",\"W = \" &K3)","v":"W "},{"$f":"IF(K9=\"\",\"L/R\",\"L\")","v":"L/R"},{"$f":"IF(K9=\"\",AG131,VLOOKUP(AG67,AG7:AR100,$AE$1+1,FALSE))","v":"Motor side "},{"$nulls":3},{"$f":"IF(K9=\"\",\"min. 375\",F61)","v":"min. 375"},"F",null,null,{"$f":"IF(K7=\"\",\"\",K7)","v":""},{"$nulls":16},{"$f":"VLOOKUP(AH56,AH56:AR150,$AE$1,FALSE)","v":"Furthermore the opening must be plumb and square."},"Otvor musí být svislý a obdélníkový.","Furthermore the opening must be plumb and square.","Im übrigen müssen die lichten Masse eben und rechtwinklig sein.","Otwór musi być pionowy i prostokątny.","L'ouverture de la baie doit etre parfaitement de niveau et d'equerre.","Tevens moet de dagmaat vlak en haaks zijn.","Ava peab olema täpne ja nelinurkne","Lisäksi oviaukon pitää olla pysty- ja vaakasuora sekä nelikulmainen.","Проем также должен быть ровным и прямоугольным."]
[null,"H ",{"$f":"VLOOKUP(AG62,AG3:AR96,$AE$1+1,FALSE)","v":"Opening height"},null,null,{"$f":"IF(K5=\"\",\"H \",\"H = \" &K5)","v":"H "},{"$f":"IF(K9=\"\",\"L/R\",\"R\")","v":"L/R"},{"$f":"IF(K9=\"\",AG132,VLOOKUP(AG68,AG8:AR101,$AE$1+1,FALSE))","v":"Other side"},{"$nulls":3},{"$f":"IF(K9=\"\",\"min. 125\",F62)","v":"min. 125"},{"$nulls":5},{"$f":"VLOOKUP(AG29,AG2:AR96,$AE$1+1,FALSE)","v":"Necessary mounting surface and free room as shown."},{"$nulls":14},{"$f":"VLOOKUP(AH57,AH57:AR151,$AE$1,FALSE)","v":"Floor area must be flat and horizontal."},"Podlaha musí být rovná a vodorovná.","Floor area must be flat and horizontal.","Der Fussboden muss glatt und waagerecht sein.","Podłoga musi być równa i pozioma.","Le sol doit etre parfaitement horizontal et plan.","De afgewerkte vloer dient vlak en waterpas te liggen.","Põrandapind peab olema sile ja horisontaalne","Lattian pitää olla tasainen ja vaakasuora.","Обработанный пол должен быть ровным и без склонов."]
[null,"HL",{"$f":"AG63","v":"High lift"},null,null,{"$f":"IF(K7=\"\",\"HL \",\"HL = \" &P59)","v":"HL "},{"$f":"IF(G56=\"\",\"\",\"D\")","v":"D"},{"$f":"AG69","v":"Back room"},null,null,{"$f":"IF(G56=\"\",\"\",\"H - HL + 1000\")","v":"H - HL + 1000"},{"$f":"IF(G56=\"\",\"\",IF(OR(K5=\"\",K7=\"\"),\"\",K5-P59+1000))","v":""},{"$f":"AG63","v":"High lift"},{"$nulls":4},{"$f":"VLOOKUP(AG30,AG2:AR96,$AE$1+1,FALSE)","v":"Electrical supply required to be :"}]
[null,"F",{"$f":"VLOOKUP(AG65,AG5:AR98,$AE$1+1,FALSE)","v":"Free room above lintel"},null,null,{"$f":"IF(K7=\"\",\"F \",\"F = \" &K7)","v":"F "},{"$f":"IF(OR(L58<=3000,K5=\"\"),VLOOKUP(AG79,AG6:AR99,$AE$1+1,FALSE),\"\")","v":"Hanging point if"},null,null,{"$f":"IF(OR(L58<=3000,K5=\"\"),\"D<=3000\",\"\")","v":"D<=3000"},null,null,"HL",{"$f":"IF(OR(K5=\"\",K7=\"\"),\"\",IF(K11=AG117,O59-40,O59))","v":""},{"$f":"IF(AND(K7<1640,K5<4800),K7-270,IF(AND(K7>=1641,K7<3370,K5<4800),K7-320,K7-360))","v":-270},{"$f":"IF(OR(K3=\"\",K5=\"\"),\"\",IF(AND(N59>4100,K5>4100),4100,IF(N59>K5,K5-10,N59)))","v":""},null,{"$f":"VLOOKUP(AG51,AG2:AR96,$AE$1+1,FALSE)","v":"Electric outlet parameters can be found in the product documentation."}]
[null,"A",{"$f":"VLOOKUP(AG82,AG6:AR99,$AE$1+1,FALSE)","v":"Height of shaft above lintel"},null,null,{"$f":"IF(K7=\"\",\"A\",\"A = \" &P64)","v":"A"},{"$f":"IF(OR(L58<=3000,K5=\"\"),\"X\",\"\")","v":"X"},{"$f":"IF(OR(L58<=3000,K5=\"\"),VLOOKUP(AG80,AG6:AR99,$AE$1+1,FALSE),\"\")","v":"Hanging point"},null,null,{"$f":"IF(K5=\"\",\"H- HL\",IF(L58<=3000,\"H - HL\",\"\"))","v":"H- HL"},{"$f":"IF(L58<3000,IF(OR(K3=\"\",K5=\"\",K7=\"\"),\"\",K5-P59),\"\")","v":""},"HL < 1370 & H< 4800",null,null,"HL + 270",{"$nulls":16},"UNITS in mm","Rozměry jsou v mm","UNITS in mm","MASSE in mm","Wymiary podane w mm","MESURES en mm","MATEN in mm","Mõõdud mm","YKSIKKÖ mm","размеры в мм:"]
[null,"L",{"$f":"VLOOKUP(AG67,AG7:AR100,$AE$1+1,FALSE)","v":"Free side room left"},null,null,{"$f":"IF(OR(K3=\"\",K9=\"\"),\"L\",IF($K$13=$AG$123,\"L =\" & $I$33+25,\"L = \" &$I$33))","v":"L"},{"$f":"IF(K5=\"\",VLOOKUP(AG79,AG6:AR99,$AE$1+1,FALSE),IF(AND(L58>=3000,L58<4500),VLOOKUP(AG79,AG6:AR99,$AE$1+1,FALSE),\"\"))","v":"Hanging point if"},null,null,{"$f":"IF(K5=\"\",\"3000<D<=4500\",IF(AND(L58>3000,L58<=4500),\"3000<D<=4500\",\"\"))","v":"3000<D<=4500"},null,null,"1370 = <  HL < 3050 & H< 4800",null,null,"HL + 320",null,{"$f":"VLOOKUP(AG85,AG2:AR96,$AE$1+1,FALSE)","v":"Designed by:"},null,{"$f":"VLOOKUP(AG86,AG2:AR96,$AE$1+1,FALSE)","v":"Checked by:"},null,{"$f":"VLOOKUP(AG87,AG2:AR96,$AE$1+1,FALSE)","v":"Approved by - date:"},null,{"$f":"VLOOKUP(AG88,AG2:AR96,$AE$1+1,FALSE)","v":"File name:"},null,{"$f":"VLOOKUP(AG89,AG2:AR96,$AE$1+1,FALSE)","v":"Date:"},{"$f":"VLOOKUP(AG90,AG2:AR96,$AE$1+1,FALSE)","v":"Scale:"},{"$f":"VLOOKUP(AG91,AG2:AR96,$AE$1+1,FALSE)","v":"Sheet:"},{"$nulls":4},"Opening width","Šířka otvoru","Opening width","Lichte Breite","Szerokość otworu","LARGEUR DE BAIE","Dagmaat breedte","Ava laius","Oviaukon leveys","ширина проема"]
[null,"R ",{"$f":"VLOOKUP(AG68,AG8:AR101,$AE$1+1,FALSE)","v":"Free side room right"},null,null,{"$f":"IF(OR(K3=\"\",K9=\"\"),\"R\",IF(AND($K$13=$AG$123,K3<>\"\",K9<>\"\"),\"R = \"&$I$32+25,\"R = \"&$I$32))","v":"R"},{"$f":"IF(K5=\"\",\"X\",IF(AND(L58>3000,L58<=4500),\"X\",\"\"))","v":"X"},{"$f":"IF(K5=\"\",VLOOKUP(AG70,AG6:AR99,$AE$1+1,FALSE),IF(AND(L58>3000,L58<=4500),VLOOKUP(AG70,AG6:AR99,$AE$1+1,FALSE),\"\"))","v":"1 st hanging point"},null,null,{"$f":"IF(K5=\"\",\"H-HL\",IF(AND(L58>3000,L58<=4500),\"H -HL\",\"\"))","v":"H-HL"},{"$f":"IF(OR(K3=\"\",K5=\"\",K7=\"\"),\"\",IF(AND(L58>3000,L58<=4500),IF(OR(K3=\"\",K5=\"\",K7=\"\"),\"\",K5-P59),\"\"))","v":""},"3050 = <  HL < 4100 ",null,null,"HL + 360",null,"K. Luňák",null,"R. Kříž",null,"2023-04-03",null,"STP",null,"2024-04-03","-","A3",{"$nulls":4},"Opening height","Výška otvoru","Opening height","Lichte Höhe","Wysokość otworu","HAUTEUR DE BAIE","Dagmaat hoogte","Ava kõrgus","Oviaukon korkeus","высота проема"]
[null,"D ",{"$f":"VLOOKUP(AG69,AG9:AR102,$AE$1+1,FALSE)","v":"Back room"},null,null,{"$f":"IF(K7=\"\",\"D\",\"D = \" &L58)","v":"D"},{"$f":"IF(K5=\"\",\"Y\",IF(AND(L58>3000,L58<=4500),\"Y\",\"\"))","v":"Y"},{"$f":"IF(K5=\"\",VLOOKUP(AG71,AG6:AR99,$AE$1+1,FALSE),IF(AND(L58>3000,L58<=4500),VLOOKUP(AG71,AG6:AR99,$AE$1+1,FALSE),\"\"))","v":"2 nd hanging point"},null,null,{"$f":"IF(K5=\"\",\"1/2 X\",IF(AND(L58>3000,L58<=4500),\"1/2 X\",\"\"))","v":"1/2 X"},{"$f":"IF(OR(K3=\"\",K5=\"\",K7=\"\"),\"\",IF(AND(L58>3000,L58<=4500),ROUNDDOWN(L62/2,0),\"\"))","v":""},{"$f":"VLOOKUP(AG82,AG6:AR99,$AE$1+1,FALSE)","v":"Height of shaft above lintel"},{"$nulls":4},"http://door-documents.com/en/indy-installation-drawing-hl",{"$nulls":3},{"$f":"VLOOKUP(AG92,AG2:AR96,$AE$1+1,FALSE)","v":"INSTALLATION DRAWING             HIGH LIFT SYSTEM (HL)"},{"$nulls":10},"High lift","Zvýšené vedení","High lift","Höhe der Führung","Wyciąg wysoki","LEEVE HAUTE","High lift","Kõrge tõste","korkeanosto","Высокий подъем"]
[null,"X ",{"$f":"VLOOKUP(AG70,AG13:AR104,$AE$1+1,FALSE)","v":"1 st hanging point"},{"$nulls":3},{"$f":"IF(L58>4500,VLOOKUP(AG79,AG11:AR104,$AE$1+1,FALSE),\"\")","v":"Hanging point if"},null,null,{"$f":"IF(L58>4500,\"D>4500\",\"\")","v":"D>4500"},null,null,"A",null,{"$f":"IF(P59<1370,P59+160,IF(P59<3050,P59+190,P59+210))","v":{"$error":"#VALUE!"}},{"$f":"IF(OR(K3=\"\",K5=\"\",K3=0,K5=0),\"\",O64)","v":""},{"$nulls":16},"Interior height","Výška stropu","Interior height","Höhe Innenraum","Wysokość stropu","HAUTEUR SOUS PLAFOND","Hoogte binnenruimte","Sisemine kõrgus","sisäkorkeus","высота внутри помещения до перекрытий"]
[null,"Y ",{"$f":"VLOOKUP(AG71,AG14:AR105,$AE$1+1,FALSE)","v":"2 nd hanging point"},{"$nulls":3},{"$f":"IF(L58>4500,\"X\",\"\")","v":"X"},{"$f":"IF(L58>4500,VLOOKUP(AG70,AG9:AR102,$AE$1+1,FALSE),\"\")","v":"1 st hanging point"},null,null,{"$f":"IF(L58>4500,\"H-HL+500\",\"\")","v":"H-HL+500"},{"$f":"IF(OR(K3=\"\",K5=\"\",K7=\"\"),\"\",IF(L58>4500,K5-P59+500,\"\"))","v":""},"HL< 1370 ",null,"HL +160",{"$nulls":17},"Free room above lintel","Volný prostor nad překladem","Free room above lintel","Freiraum über Sturz","Wolna przestrzeń nad nadprożem","RETOMBEE DE LINTEAU DISPONIBLE","Vrije ruimte boven latei","Vaba ruum laeni","vapaa ylätila","свободное пространство над проемом"]
[null,"Z ",{"$f":"VLOOKUP(AG72,AG15:AR106,$AE$1+1,FALSE)","v":"3 rd hanging point"},{"$nulls":3},{"$f":"IF(L58>4500,\"Y\",\"\")","v":"Y"},{"$f":"IF(L58>4500,VLOOKUP(AG71,AG10:AR103,$AE$1+1,FALSE),\"\")","v":"2 nd hanging point"},null,null,{"$f":"IF(L58>4500,\"(X/3)*2\",\"\")","v":"(X/3)*2"},{"$f":"IF(OR(K3=\"\",K5=\"\",K7=\"\"),\"\",IF(L58>4500,ROUNDDOWN((L65/3)*2,0),\"\"))","v":""},"HL< 3050",null,"HL +190",{"$nulls":17},"Height of frame above opening","Výška montážní plochy nad otvorem","Height of frame above opening","Höhe über Montagefläche Loch","Wysokość powyżej otworu montażowego powierzchni","HAUTEUR AU-DESSUS DU TROU DE SURFACE DE MONTAGE","Hoogte frame boven latei","Raami kõrgus ava kohal","Rungon korkeus oviaukon yläpuolella.","высота конструкции ворот над проемом"]
[{"$nulls":6},{"$f":"IF(L58>4500,\"Y2\",\"\")","v":"Y2"},{"$f":"IF(L58>4500,VLOOKUP(AG72,AG11:AR104,$AE$1+1,FALSE),\"\")","v":"3 rd hanging point"},null,null,{"$f":"IF(L58>4500,\"X/3\",\"\")","v":"X/3"},{"$f":"IF(OR(K3=\"\",K5=\"\",K7=\"\"),\"\",IF(L58>4500,ROUNDDOWN(L65/3,0),\"\"))","v":""},"HL< 4100",null,"HL +210",{"$nulls":17},{"$f":"VLOOKUP(AH67,AH67:AR161,$AE$1,FALSE)","v":"Free side room left"},"Volný prostor vlevo","Free side room left","Freiraum LINKS","Wolna przestrzeń W LEWO","ECOINCON GAUCHE","Vrije zijruimte links","Vaba küljeruum vasakul","vapaa tila vasemalla","свободное боковое пространство СЛЕВА"]
[{"$nulls":21},{"$f":"AG12","v":"HIGH LIFT SYSTEM (HL)"},{"$nulls":3},{"$f":"VLOOKUP(AG95,AG2:AR96,$AE$1+1,FALSE)","v":"Code:"},{"$f":"VLOOKUP(AG96,AG2:AR96,$AE$1+1,FALSE)","v":"Version:"},{"$nulls":5},"Free side room right","Volný prostor vravo","Free side room right","Freiraum RECHTS","Wolna przestrzeń W PRAWO","ECOINCON DROITE","Vrije zijruimte rechts","Vaba küljeruum paremal","vapaa tila oikealla","свободное боковое пространство СПРАВА"]
[{"$nulls":25},20,2414,{"$nulls":5},"Back room","Hloubka vedení","Back room","Einbautiefe","Głębokość prowadzenia poziomego","REFOULEMENT HORS-TOUT","Inbouwdiepte","Sügavus","tila takana","монтажная глубина"]
[{"$nulls":32},"1 st hanging point","Kotvící bod č. 1","1 st hanging point","1. Aufhängepunkt","Punkt mocowania nr 1","POINT D'ANCRAGE 1 SUSPENTE","1e ophangpunt","1.kinnituskoht","1. ripustuspiste","1 точка крепления горизонтальных направляющих"]
[{"$nulls":32},"2 nd hanging point","Kotvící bod č. 2","2 nd hanging point","2. Aufhängepunkt","Punkt mocowania nr 2","POINT D'ANCRAGE 2 SUSPENTE","2e ophangpunt","2.kinnituskoht","2. ripustuspiste","2 точка крепления горизонтальных направляющих"]
[{"$nulls":32},"3 rd hanging point","Kotvící bod č. 3","3 rd hanging point","3. Aufhängepunkt","Punkt mocowania nr 3","POINT D'ANCRAGE 3 SUSPENTE","3e ophangpunt","3. kinnituskohta","3. ripustuspiste","3 точка крепления горизонтальных направляющих"]
[{"$nulls":32},"Free room above mounting surface","Volný prostor nad překladem","Free room above mounting surface","Freiplatz auf der Mountageplatz","Wolny przestrzeń nad nadproźem","Espace au-dessus de la surface de montage","Ruimte boven montagevlak","Vaba ruum ülalpool paigalduspinda","Vapaa tila asennuspisten kohdalla","технологический зазор"]
[{"$nulls":32},"Manually operated","Ruční ovládání","Manually operated","Handbedienung","Sterowanie ręczne","PORTE MANUELLE","Handbediend","Käsitsi avatav","Käsikäyttöinen","ручное управление"]
[{"$nulls":32},"Both sided","Obě strany","Both sided","Beide Seiten","Obie strony","LES 2 COTES","Beide zijden","Mõlemal pool","\nKaksipuoleinen","обе стороны"]
[{"$nulls":32},"Electrical or hauling chain operated","Ovládání elektricky nebo řetězovým převodem","Electrical or hauling chain operated","Elektrisch- oder Haspelkettenbedient","Sterowanie elektr. lub za pom. przekł. łańc.","PORTE MOTORISEE OU AVEC TREUIL A CHAINE","Elektrisch- of handketting bediend","Elektriliselt või taliga avatav","Sähkö- tai ketjukäytöinen","электрическое управление или с помощью цепи"]
[{"$nulls":32},"Motor or chain side","Motor nebo řetěz. př.","Motor or chain side","Motor-oder Kettenseite","Silnik lub przekł. łańc.","ECOINCON LIBRE A COTE DE MOTEUR","Motor- of kettingzijde","Mootori või tali pool","Mootorin tai ketjun puolinen","сторона цепи или мотора"]
[{"$nulls":32},"Back room","Hloubka vedení","Back room","Einbautiefe","Głębokość prowadzenia","REFOULEMENT HORS-TOUT","Inbouwdiepte","Sügavus","Tila takana","монтажная глубина"]
[{"$nulls":32},"Hanging point if","Kotvící bod, když je","Hanging point if","Aufhängepunkte, wenn","Punkty mocowania, jeżeli","POINT D'ANCRAGE DES SUSPENTES, SI","Ophangpunt, als","Kinnituskoht, kui ","Ripustuspiste jos","точки крепления горизонтальных направляющих, если"]
[{"$nulls":32},"Hanging point","Kotvící bod","Hanging point","Aufhängepunkte","Punkty mocowania","POINT D'ANCRAGE DES SUSPENTES","Ophangpunt","Kinntuskoht","Ripustuspiste","точка крепления"]
[{"$nulls":32},"Free room above lintel","Volný prostor nad překladem","Free room above lintel","Freiraum über Sturz","Wolna przestrzeń nad nadprożem (min.)","RETOMBEE DE LINTEAU DISPONIBLE","Vrije ruimte boven latei","Vaba ruum sillusest  laeni","Tila oviaukon päällä","свободное пространство над проемом"]
[{"$nulls":32},"Height of shaft above lintel","Osa hřídele nad překladem","Height of shaft above lintel","Mitte Achse zum Sturz","Oś wału nad nadprożem","POSITIONNEMENT AXE DE l'ARBRE DE LINTEAU","Center as boven latei","Kesktelg","Akseli ovipalkkin päällä","центральная ось вала"]
[]
[]
[{"$nulls":32},"Designed by:","Sestavil:","Designed by:","Aufgestellt:","Wykonał:","DESSINE PAR:","Getekend door:","Joonestatud:","\nSuunnitellut:","спроектировано:"]
[{"$nulls":32},"Checked by:","Upravil:","Checked by:","Bereinigt:","Skorygował:","MODIFIE PAR:","Gecontroleerd door:","Kontrollitud:","Tarkistanut","проверил:"]
[{"$nulls":32},"Approved by - date:","Schváleno - datum:","Approved by - date:","Bereinigt am:","Skorygowano dnia:","MODIFIE LE (DATE):","Goedgekeurd datum:","Kinnitatud:","\nHyväksytty - päivämäärä:","одобрил-дата:"]
[{"$nulls":32},"File name:","Název souboru:","File name:","Dateiname:","Nazwa pliku:","TITRE:","Bestandsnaam","Faili nimi:","\nTiedoston nimi:","навание файла:"]
[{"$nulls":32},"Date:","Datum:","Date:","Datum:","Data:","DATE:","Datum:","Kuupäev:","Päivämäärä:","дата:"]
[{"$nulls":32},"Scale:","Měřítko","Scale:","Massst.:","Podział.:","ECHELLE:","Schaal:","Mõõtkava:","Mittakaava:","шкала:"]
[{"$nulls":32},"Sheet:","Formát: ","Sheet:","Format:","Format:","FORMAT:","Sheet:","Formaat:","Lista:","лист:"]
[{"$nulls":32},"INSTALLATION DRAWING             HIGH LIFT SYSTEM (HL)","STAVEBNÍ PŘIPRAVENOST                    VEDENÍ PRO VYSOKÝ PŘEKLAD (HL)","INSTALLATION DRAWING             HIGH LIFT SYSTEM (HL)","BAUBEREITSCHAFT","PRZYGOTOWANIE KONSTRUKCYJNE                      PROWADZENIE DLA WYSOKIEGO NADPROZA(HL)","PLAN DE RESERVATIONS & ENCOMBREMENTS                                       LEVEE HAUTE (HL)","INBOUWTEKENING VOORGE                             HOOG beslagsysteem (HL)","Paigaldusjoonis kõrge tõste (HL)","ASENNUSPIIRUSTUS KORKEANOSTO (HL)","монтажный чертеж: ВЫСОКИЙ ПОДЪЕМ (HL)"]
[{"$nulls":32},"springs above lintel ","pružiny nad překladem ","springs above lintel "," Federn oberhalb des Sturzes ","sprężyny nad nadprożem ","RESSORTS AVANTS DEPORTES DU LINTEAU","verenpakket boven latei","vedrud ava kohal","jouset ovipalkkin päällä","нижнее расположение вала"]
[{"$nulls":32},"VERTICAL LIFT SYSTEM","VERTIKÁLNÍ SYSTÉM","VERTICAL LIFT SYSTEM","VERTIKALER BESCHLAG (VL-T)","PROWADZENIE PIONOWE (VL-T)","LEVEE VERTICALE (VL)","VERTICAAL PLAFONDSYSTEEM"]
[{"$nulls":32},"Code:","Kód:","Code:","Kode:","Kod:","CODE:","Nr.:","Kood:","Koodi:","код:"]
[{"$nulls":32},"Version:","Verze:","Version:","Version:","Wersja:","VERSION:","Versie:","Versioon:","Versio:","версия:"]
[{"$nulls":32},"NOT REQUIRED","NENÍ POŽADOVÁNO","NOT REQUIRED","NICHT ERFORDELICH","Nie jest wymagane","Pas nécessaire","NIET BENODIGD","Mitte vajalik:","EI VAADITTU","НЕ ТРЕБУЕТСЯ"]
[]
[{"$nulls":32},"Please, fill in the fields that are marked in color!","Prosím, vyplňte pole, která jsou označena barevně!","Please, fill in the fields that are marked in color!","Fülen Sie bitte markierte Felder!","Prosimy o wypełnienie pól oznaczonych kolorem!","S'il vous plaît remplissez les champs qui sont marqués en couleur!","Vul a.u.b. de gemarkeerde velden in!","Palun täida värvilised väljad!","\nTäytä kentät, jotka on merkitty värillä!","пожалуйста, заполните поля обозначенные цветом!"]
[]
[{"$nulls":32},"Operated","Ovládání","Operated","Bedienung","Sterowanie","PORTE","Bediening","Avamine","Ohjattu","Тип управления"]
[{"$nulls":32},"manually","ručně","manually","hand","ręcznie wykonany","MANUELLE","hand","käsitsi","manuaalisesti","вручную"]
[{"$nulls":32},"electrical ","elektricky","electrical ","elektrisch","elektrycznie","MOTORISEE","elektrisch","elektriliselt","sähköisesti","электрическое управление или с помощью цепи"]
[{"$nulls":32},"hauling chain operated - left","řetězovým převodem vlevo","hauling chain operated - left","Haspelkette - links","Łańcuch napędu -  lewy","TREUIL A CHAINE - gauche","handketting - links","taliga - vasakule","ketjukäyttöinen - vasen","цепной привод -  левый\n"]
[{"$nulls":32},{"$f":"VLOOKUP(AH105,AH105:AR199,$AE$1,FALSE)","v":"hauling chain operated - right"},"řetězovým převodem vpravo","hauling chain operated - right","Haspelkette - rechts","Łańcuch napędu -  prawy","TREUIL A CHAINE - droite","handketting - rechts","taliga - paremale","ketjukäyttöinen - oikea","цепной привод -  правая"]
[{"$nulls":32},"Possition of motor","Umístění motoru","Possition of motor","Antriebsposition","Pozycja sylnika","LA POSITION MOTEUR","Positie van de motor","mootori asukohta","Mootorin asema","расположение мотора"]
[{"$nulls":32},"electric motor on the left","Elektricky - motor vlevo","electric motor on the left","Antrieb - links","silnik elektryczny po lewej stronie","moteur électrique à gauche","elektromotor links","elektrimootor vasakul","sähkömoottori oikealla","электродвигатель слева"]
[{"$nulls":32},"electric motor on the right","Elektricky - motor vpravo","electric motor on the right","Antrieb - rechts","silnik elektryczny po prawej stronie","moteur électrique à droite","elektromotor recht","elektrimootor paremal","sähkömoottori vasemmalla","электродвигатель справа"]
[]
[{"$nulls":32},"Additional spring mounting","Variantní  montáž pružin","Additional spring mounting","Extra Aufhängung Federpaket","Wariant montażu sprężyn","MONTAGE DES RESSORTS","Extra veer monteren"]
[{"$nulls":32},"if W< 2000 - INSD-1 spring (SPR-1)","když B<2000 - STP-1 pružina (SPR-1)","if W< 2000 - INSD-1 spring (SPR-1)","Wenn W< 2000 - BAUS-1 Feder (SPR-1)","jeżeli W< 2000-STP-1 sprężyna (SPR-1)","SI W< 2000 STP-1RESSORT (SPR-1)","als B<2000 - INSD-1 veer (SPR-1)"]
[{"$nulls":32},"if 2000>=W<6000 - INSD-2 springs (SPR-2)","když 2000>=W<6000 - STP-2 pružiny (SPR-2)","if 2000>=W<6000 - INSD-2 springs (SPR-2)","Wenn 2000>=W<6000- BAUS-2 Federn (SPR-2)","jeżeli 2000>=W<6000-STP-2 sprężyna (SPR-2)","SI 2000>=W<6000 STP-2RESSORTS (SPR-2)","als 2000>=B<6000 - INSD-2 veren (SPR-2)"]
[{"$nulls":32},"if W>=6000 - INSD-4 springs (SPR-4)","když W>=6000 = STP-4 pružiny (SPR-4)","if W>=6000 - INSD-4 springs (SPR-4)","Wenn W>=6000 - BAUS-4 Federn (SPR-4)","jeżeli W>=6000-STP-4 sprężyna (SPR-4)","SI W> 6000 STP-4RESSORTS (SPR-4)","als B>=6000 - INSD-4 veren (SPR-4)"]
[]
[{"$nulls":32},"Type of panel","Typ panelu","Type of panel","Paneel-Typ","Rodzaj panelu","Type de panneau","Panel type","Paneelitüüp","lamellin tyypi","Тип панели"]
[{"$nulls":32},"40mm","40mm","40mm","40mm","40mm","40mm","40mm","40 mm","40mm","40мм"]
[{"$nulls":32},"80mm","80mm","80mm","80mm","80mm","80mm","80mm","80 mm","80mm","80мм"]
[]
[{"$nulls":32},"When 1 1/4 \"shaft, lintel is HL+360 and axis of shaft is HL + 210 mm","Když 1 1/4\" hřídel, tak překlad automaticky HL+360 a osa hřídele HL+210 mm","When 1 1/4 \"shaft, lintel is HL+360 and axis of shaft is HL + 210 mm","Wenn 1 1/4 \"Schaft, Sturz ist HL + 360 und Achse der Welle ist HL + 210 mm","Po 1 1/4 \"Wał, nadproża jest HL + 360 i oś wału jest HL + 210 mm","Lorsque 1 1/4 \"arbre, linteau est HL + 360 et l'axe ou l'arbre est HL + 210 mm","Wanneer 1 1/4 \"schacht, latei is HL + 360 en as van de as is HL + 210 mm","1 1/4\" võlli puhul, sillus on HL+360 ja võlli kesktelg on HL+210 MM","Kun 1 1/4 \"akseli, ovipalkki on HL + 360 ja akselin keskiviiva on HL + 210 mm","при использовании вала 1,25 дюйма перемычка (F) = HL+360 и ось вала (A) = HL+210мм"]
[]
[{"$nulls":32},"Type of rails","Typ vedení","Type of rails","Laufschienen-Typ","Typ moznazowych","Type des rails","Type looprails","Siinide tüüp","Kiskojen tyyppi","Тип направляющих"]
[{"$nulls":32},"2\"","2\"","2\"","2\"","2\"","2\"","2\"","2\"","2\"","2\""]
[{"$nulls":32},"3\"","3\"","3\"","3\"","3\"","3\"","3\"","3\"","3\"","3\""]
[]
[{"$nulls":32},{"$f":"VLOOKUP(AH125,AH125:AR219,$AE$1,FALSE)","v":"FRAME - HIGH LIFT SYSTEM (HL)"},"RÁM - VEDENÍ PRO VYSOKÝ PŘEKLAD (HL)","FRAME - HIGH LIFT SYSTEM (HL)","RAHMEN -  HÖHERGEFÜHRTER BESCHLAG (HL)","RAMA - PROWADZENIE DLA WYSOKIEGO NADPROŻA (HL)","CARDE - LEVEE HAUTE (HL)","RAMM - HOOG beslagsysteem (HL)","RAAM - Kõrge tõste (HL)","KEHYS - KORKEANOSTO (HL)","РАМКА - ВЫСОКИЙ ПОДЪЕМ (HL) "]
[{"$nulls":32},{"$f":"VLOOKUP(AH126,AH126:AR220,$AE$1,FALSE)","v":"Offer/Order:"},"Nabídka/Objednávka:","Offer/Order:","Angebot/Bestellung:","Oferta/Zamówienie:","Offre/Commande:","Offerte/Order:","Pakkumine/tellimus:","Tarjous/Tilaus:","Предложение/заказ:"]
[{"$nulls":32},{"$f":"VLOOKUP(AH127,AH127:AR221,$AE$1,FALSE)","v":"Position:"},"Pozice:","Position:","Position:","Pozycje:","Positions:","Positie:","Ametikohad:","Työpaikat:","Позиции:"]
[{"$nulls":32},{"$f":"VLOOKUP(AH128,AH128:AR219,$AE$1,FALSE)","v":"Left side "},"Levá strana","Left side ","Linke Seite","Lewa strona","Côté gauche","Linkerzijde","Vasakpoolne","Vasen puoli","левая сторона"]
[{"$nulls":32},"Right side","Pravá strana","Right side","Rechte Seite","Prawa strona","Côté droit","Rechterkant","Paremal pool","Oikea puoli"]
[{"$nulls":32},{"$f":"VLOOKUP(AH130,AH130:AR225,$AE$1,FALSE)","v":"For cable break device with orange cover  side space (L and R) min. 145mm"},"Pro pojistku při prasknutí lanka s oranžovým krytem minimální boční prostor (L a R) min. 145mm","For cable break device with orange cover  side space (L and R) min. 145mm","Für Seilbruchsicher mit orangefarbenem Deckel Seitenabstand (L und R) min. 145mm","Dla przerywacza kabla z pomarańczową osłoną odstęp boczny (L i R) min. 145 mm","Pour les dispositifs de coupure de câble avec couvercle orange espace latéral (G et D) min. 145mm","Voor kabelbreekapparaat met oranje afdekking Zijruimte (L en R) min. 145 mm","Oranži kattega kaablikatkestusseadme jaoks külgmised ruumid (L ja R) min. 145mm","Kaapelin katkaisulaitteelle, jossa on oranssi kansi Sivutila (L ja R) min. 145mm.","Для устройства разрыва кабеля с оранжевой крышкой боковое пространство (L и R) мин. 145 мм"]
[{"$nulls":32},{"$f":"VLOOKUP(AH131,AH131:AR226,$AE$1,FALSE)","v":"Motor side "},"Strana motoru","Motor side ","Antriebseite ","Strona silnika ","Côté moteur ","Motorzijde ","Mootori pool ","Moottorin puoli ","Сторона двигателя "]
[{"$nulls":32},"Other side","Druhá strana","Other side","Andere Seite ","Druga strona ","Autre côté ","Andere kant ","Teine pool ","Muu puoli ","Другая сторона "]

{"sheet":"SW-R","index":1,"n_rows":48,"n_cols":5,"rows_kept":48,"merged":[[5,0,8,0],[14,0,17,0],[39,2,40,8],[41,2,42,3],[41,4,42,6],[41,7,48,8],[43,2,44,3],[43,4,44,6],[45,2,46,3],[45,4,46,6],[47,2,48,3],[47,4,48,6]]}
{"$rows_empty":39}
[null,null,{"$f":"general!AG125","v":"FRAME - HIGH LIFT SYSTEM (HL)"}]
[]
[null,null,{"$f":"general!$AG$101","v":"Operated"},null,{"$f":"general!$AG$108","v":"electric motor on the right"}]
[]
[null,null,{"$f":"general!$R$61","v":"Designed by:"}]
[]
[null,null,{"$f":"general!$T$61","v":"Checked by:"}]
[]
[null,null,{"$f":"general!$Z$61","v":"Date:"}]

{"sheet":"SW-L","index":2,"n_rows":48,"n_cols":5,"rows_kept":48,"merged":[[5,0,8,0],[5,8,8,8],[14,0,17,0],[14,8,17,8],[39,2,40,8],[41,2,42,3],[41,4,42,6],[41,7,48,8],[43,2,44,3],[43,4,44,6],[45,2,46,3],[45,4,46,6],[47,2,48,3],[47,4,48,6]]}
{"$rows_empty":39}
[null,null,{"$f":"general!$AG$125","v":"FRAME - HIGH LIFT SYSTEM (HL)"}]
[]
[null,null,{"$f":"general!$AG$101","v":"Operated"},null,{"$f":"general!$AG$107","v":"electric motor on the left"}]
[]
[null,null,{"$f":"general!$R$61","v":"Designed by:"}]
[]
[null,null,{"$f":"general!$T$61","v":"Checked by:"}]
[]
[null,null,{"$f":"general!$Z$61","v":"Date:"}]

{"sheet":"Manually_operated","index":3,"n_rows":48,"n_cols":5,"rows_kept":48,"merged":[[5,0,8,0],[14,0,17,0],[39,2,40,8],[41,2,42,3],[41,4,42,6],[41,7,48,8],[43,2,44,3],[43,4,44,6],[45,2,46,3],[45,4,46,6],[47,2,48,3],[47,4,48,6]]}
{"$rows_empty":39}
[null,null,{"$f":"general!AG125","v":"FRAME - HIGH LIFT SYSTEM (HL)"}]
[]
[null,null,{"$f":"general!$AG$101","v":"Operated"},null,{"$f":"general!$AG$102","v":"manually"}]
[]
[null,null,{"$f":"general!$R$61","v":"Designed by:"}]
[]
[null,null,{"$f":"general!$T$61","v":"Checked by:"}]
[]
[null,null,{"$f":"general!$Z$61","v":"Date:"}]

{"sheet":"Obrázky","index":4,"n_rows":128,"n_cols":26,"rows_kept":128,"hidden":true,"merged":[[5,24,7,30],[19,3,43,3],[19,4,43,10],[46,3,70,3],[46,4,70,10],[73,3,97,3],[73,4,97,10],[100,3,124,3],[100,4,124,10],[127,3,151,3],[127,4,151,10]]}
[]
[]
[]
[]
[]
[{"$nulls":24},"Pomocné výpočty"]
[]
[]
[]
[{"$nulls":24},"L=",{"$f":"IF(general!$K$13=general!$AG$123,general!$I$33+25,general!$I$33)","v":""}]
[{"$nulls":24},"R=",{"$f":"IF(general!$K$13=general!$AG$123,general!$I$32+25,general!$I$32)","v":""}]
[{"$nulls":24},"W=",{"$f":"general!K3","v":0}]
[{"$nulls":24},"L+W+R = ",{"$f":"IF(general!K3=\"\",\"L+W+R \", Y13 & Z10+Z11+Z12)","v":"L+W+R "}]
[{"$nulls":24},"HL = ",{"$f":"IF(OR(general!$K$5=\"\",general!$K$7=\"\"),\"HL \",Y14 & general!P59)","v":"HL "}]
[]
[]
[]
[]
[]
[{"$nulls":3},{"$f":"general!AG108","v":"electric motor on the right"}]
{"$rows_empty":26}
[{"$nulls":3},{"$f":"general!AG107","v":"electric motor on the left"}]
{"$rows_empty":26}
[{"$nulls":3},{"$f":"general!AG102","v":"manually"}]
{"$rows_empty":26}
[{"$nulls":3},{"$f":"general!AG104","v":"hauling chain operated - left"}]
{"$rows_empty":26}
[{"$nulls":3},{"$f":"general!AG105","v":"hauling chain operated - right"}]